Cogmind - Beta 12 @@@ ROGUE MODE // 2023.12.06 @ 16:51:45 Player: Dosh Result: Destroyed by B-90 Cyclops with Nova Cannon Performance ------------- Evolutions (8) 4000 Regions Visited (24) 4800 Robots Destroyed (335) 1675 Value Destroyed (16102) 16102 Prototype IDs (30) 600 Alien Tech Used (0) 0 Bonus (6869) 6869 TOTAL SCORE: 34046 Bonus ------- High Alert Combat Kills 1306 Follower Combat Kills 2110 Entered Garrisons 400 Used RIF Installer 1500 Entered DSFs 500 Network Hubs Disabled 400 Aligned with FarCom 300 Met R17 at Cetus 500 Friendly Fire -147 Cogmind --------- Core Integrity 0/1450 Matter 119/300 Energy 34/100 System Corruption 10% Temperature Cool (9) Movement Core (50) Location -2/Research Parts ------- > --- POWER (2) -------- (None) > --- PROPULSION (6) --- (None) > --- UTILITY (12) ----- Target Analyzer Advanced Target Analyzer > --- WEAPON (3) ------- (None) > --- INVENTORY (5) ---- Huge Storage Unit Advanced Terrain Scan Processor Improved Weapon Shielding Field Recycling Unit (0) Great Maul Peak State ------------ > --- POWER ------------ Micro Fission Core Quantum Reactor > --- PROPULSION ------- Heavy Treads Centrium Heavy Treads Centrium Heavy Treads > --- UTILITY ---------- Improved Heat Sink Huge Storage Unit Improved Target Analyzer Core Analyzer Experimental Core Analyzer Armor Integrity Analyzer Centrium Medium Armor Plating Improved Force Field Hacking Suite Improved System Shield > --- WEAPON ----------- Proton Cannon Hypervelocity Gauss Cannon Hardcell Cannon > --- INVENTORY -------- Angular Momentum Engine Micro Fission Core Micro Antimatter Reactor Heavy Treads Advanced Cooling System Huge Storage Unit Improved Terrain Scanner Advanced Terrain Scan Processor Transmission Jammer Improved Weapon Shielding Improved Medium Armor Plating Improved Focal Shield Improved Remote Shield Remote Force Field Improved Arc Projector Heavy Laser Heavy Disruptor Cannon Heavy Gauss Cannon Improved Grenade Launcher Great Maul [Rating: 143] Favorites ----------- Power Neutrino Core Engine Angular Momentum Engine Power Core Neutrino Core Reactor Quantum Reactor Propulsion Heavy Treads Treads Heavy Treads Wheel Armored Huge Wheel Hover Unit Improved Gyrokinetic Inverter Utility Huge Storage Unit Device Microactuators Storage Huge Storage Unit Processor Core Analyzer Hackware Hacking Suite Protection Improved Core Shielding Weapon Linear Accelerator Energy Gun Improved Arc Projector Energy Cannon Phase Cannon Ballistic Gun Heavy Assault Rifle Ballistic Cannon Linear Accelerator Launcher Rocket Launcher Impact Weapon Shock Maul Build | -11 -10 -10 -10 -9 -8 -8 -8 -7 -7 -7 -6 -6 -6 -6 -6 -5 -5 -5 -5 -5 -4 -3 -3 -2 ------- Run | Jun Mat Min Exi Min Mat Gar Mat Fac Was Fac Fac Gar Fac Low Low Fac Ext Cet Arc Hub Fac Res DSF Res Slots Evolved 16 | . . . . . 4 . . 2 . . 2 . . . . 2 . . . . 2 2 . 2 Power 1 | . . . . . . . . 1 . . . . . . . . . . . . . . . . Propulsion 4 | . . . . . 1 . . . . . 1 . . . . . . . . . . 2 . . Utility 10 | . . . . . 3 . . 1 . . 1 . . . . 1 . . . . 2 . . 2 Weapon 1 | . . . . . . . . . . . . . . . . 1 . . . . . . . . Parts Attached 283 | 7 3 . . 3 20 23 18 20 9 25 15 3 11 2 1 22 5 7 2 17 26 1 18 25 Power 35 | 1 . . . . 1 1 2 2 3 2 2 1 . . 1 1 1 1 . 1 4 . 5 6 Engine 12 | 1 . . . . . . 2 . . 1 2 1 . . 1 . . . . . . . 2 2 Core 16 | . . . . . 1 1 . 2 3 1 . . . . . 1 1 . . 1 2 . 1 2 Reactor 7 | . . . . . . . . . . . . . . . . . . 1 . . 2 . 2 2 Propulsion 38 | 2 . . . . 5 3 5 5 . 3 2 . . . . 2 . 2 . 1 3 1 4 . Treads 32 | 2 . . . . 4 3 5 3 . 3 2 . . . . 2 . 2 . 1 3 1 1 . Leg . | . . . . . . . . . . . . . . . . . . . . . . . . . Wheel 3 | . . . . . 1 . . 2 . . . . . . . . . . . . . . . . Hover 3 | . . . . . . . . . . . . . . . . . . . . . . . 3 . Flight . | . . . . . . . . . . . . . . . . . . . . . . . . . Utility 108 | 1 2 . . . 9 5 4 6 3 12 10 1 8 2 . 11 3 3 . 5 13 . 4 6 Device 41 | . . . . . 1 2 . 3 1 6 4 . 4 1 . 3 . 1 . 4 5 . 1 5 Storage 9 | 1 1 . . . . . . 1 2 . 1 . . . . 1 . . . . 1 . 1 . Processor 12 | . . . . . . . 1 . . 1 1 1 1 . . 1 . 1 . . 3 . 2 . Hackware 8 | . . . . . 1 . 1 . . . 1 . . . . 3 . . . . 2 . . . Protection 38 | . 1 . . . 7 3 2 2 . 5 3 . 3 1 . 3 3 1 . 1 2 . . 1 Artifact . | . . . . . . . . . . . . . . . . . . . . . . . . . Weapon 102 | 3 1 . . 3 5 14 7 7 3 8 1 1 3 . . 8 1 1 2 10 6 . 5 13 Energy Gun 13 | 1 . . . . . 2 . 2 1 2 . . . . . . . . 1 1 1 . . 2 Energy Cannon 9 | . . . . . . . . . . . . . . . . . 1 . . 2 1 . 1 4 Ballistic Gun 23 | 2 . . . 2 3 7 3 4 1 1 . . . . . . . . . . . . . . Ballistic Cannon 32 | . 1 . . . 1 2 . 1 . 4 . 1 1 . . 5 . 1 1 4 2 . 3 5 Launcher 13 | . . . . 1 1 1 2 . 1 1 . . . . . 1 . . . 1 2 . 1 1 Special Weapon . | . . . . . . . . . . . . . . . . . . . . . . . . . Impact Weapon 12 | . . . . . . 2 2 . . . 1 . 2 . . 2 . . . 2 . . . 1 Slashing Weapon . | . . . . . . . . . . . . . . . . . . . . . . . . . Piercing Weapon . | . . . . . . . . . . . . . . . . . . . . . . . . . Special Melee Weapon . | . . . . . . . . . . . . . . . . . . . . . . . . . Unidentified Prototypes 7 | . . . . . . . . 1 . . 1 . 2 . . . . 2 . . 1 . . . Corrupted Parts 1 | . . . . . . . . . . . . . . . . . . . . . 1 . . . System Corruption 6 | . . . . . . . . . . . . . . . . . . . . . 6 . . . Parts Lost 111 | . . . . . 5 9 7 4 . 11 . 2 1 1 . 8 2 1 2 7 5 . 22 24 Power 20 | . . . . . . 1 1 1 . 2 . 1 . 1 . 1 . . . 2 1 . 4 5 Propulsion 20 | . . . . . 3 3 3 1 . 2 . . . . . 1 . . . . . . 4 3 Utility 46 | . . . . . 2 5 2 1 . 5 . . 1 . . 6 2 . . 3 2 . 9 8 Weapon 25 | . . . . . . . 1 1 . 2 . 1 . . . . . 1 2 2 2 . 5 8 Highest Loss Streak 16 | . . . . . 1 4 4 3 . 2 . 1 1 1 . 2 1 1 2 4 3 . 16 16 To Critical Strikes . | . . . . . . . . . . . . . . . . . . . . . . . . . Average Slot Usage (%) 84 | . 98 71 71 100 92 90 78 84 67 76 81 85 85 83 84 85 87 88 87 85 85 85 71 55 Engine 4 | . 14 14 14 14 1 . 8 4 . 4 3 8 13 10 11 5 5 . . . . . 1 1 Core 4 | . . . . . 7 8 . 6 13 2 6 3 . . . 4 5 5 5 7 6 4 . 3 Reactor 1 | . . . . . . . . . . . . . . . . . . 4 5 3 2 4 5 1 Treads 13 | . 28 28 28 28 21 25 18 18 . 6 12 13 13 13 13 10 11 11 11 11 10 14 10 . Device 9 | . . . . . 6 7 2 6 4 12 18 20 21 19 20 14 5 6 5 10 7 9 6 7 Storage 6 | . 14 14 14 14 9 9 9 7 5 7 5 6 6 6 6 5 5 5 5 5 5 4 5 4 Processor 9 | . . . . . . . 8 7 7 5 4 7 13 13 13 13 11 12 17 15 18 19 17 12 Hackware 4 | . . . . . 1 7 6 7 7 3 5 4 . . . 1 5 2 . . 7 9 8 3 Protection 11 | . 12 14 14 14 23 17 7 9 9 13 8 6 3 6 6 6 15 17 17 10 9 4 . 2 Energy Cannon 1 | . . . . . . . . . . . . . . . . . 4 5 . 3 1 4 1 3 Ballistic Gun 4 | . 19 . . 26 14 12 10 9 2 2 . . . . . . . . . . . . . . Ballistic Cannon 7 | . 8 . . . 3 2 . 1 . 8 8 5 5 6 6 14 11 11 11 9 9 9 8 3 Impact Weapon 1 | . . . . . . . 7 . . . 3 6 5 6 6 2 . . . . . . . . Naked Turns . | . . . . . . . . . . . . . . . . . . . . . . . . . Heaviest Build 163 | 14 34 28 28 34 47 43 45 125 126 123 127 137 137 129 130 139 151 162 158 157 159 153 163 145 Greatest Support 230 | 40 40 40 40 40 60 60 60 62 40 98 140 140 140 140 140 140 140 160 160 160 150 230 230 36 Greatest Overweight (x) 48 | . . . . . 4 . 1 21 3 4 1 . . . . . 1 2 . . 1 . 48 26 Average Overweight (x) . | . . . . . . . . . 2 2 . . . . . . . . . . . . . 3 Largest Inventory Capacity 25 | 8 15 15 15 15 15 15 15 25 25 25 25 25 25 25 25 25 25 25 25 25 25 25 25 25 Average Capacity 21 | 6 10 15 15 15 15 15 15 15 21 25 24 25 25 25 25 25 25 25 25 25 25 25 25 25 Most Carried 25 | 3 9 13 15 14 15 15 15 20 24 25 25 25 25 24 24 25 25 25 25 25 25 22 22 19 Average Carried 18 | 1 6 11 13 13 14 13 11 13 11 15 21 23 24 24 23 22 22 24 24 24 23 22 19 14 Final Capacity 25 | 8 15 15 15 15 15 15 15 25 25 25 25 25 25 25 25 25 25 25 25 25 25 25 25 5 Final Carried 25 | 3 9 13 15 13 15 14 12 20 5 25 23 25 25 24 24 19 25 25 25 25 24 22 19 5 Class Distribution -------------------- 43% | Mutant 20% | Scavenger-Mutant 15% | Scavenger-Gunner 6% | Scavenger-Tank 5% | Gunner 4% | Commander-Tank Dominant Class ---------------- Mutant | -10/Materials Mutant | -10/Mines Mutant | -10/Exiles Mutant | -9/Mines Scavenger-Mutant | -8/Materials Scavenger-Mutant | -8/Garrison Scavenger-Mutant | -8/Materials Scavenger-Mutant | -7/Factory Mutant | -7/Waste Mutant | -7/Factory Mutant | -6/Factory Mutant | -6/Garrison Mutant | -6/Factory Mutant | -6/Lower Caves Mutant | -6/Lower Caves Mutant | -5/Factory Commander-Tank | -5/Extension Scavenger-Tank | -5/Cetus Scavenger-Tank | -5/Archives Scavenger-Gunner | -5/Hub_04(d) Scavenger-Gunner | -4/Factory Scavenger-Gunner | -3/Research Scavenger-Gunner | -3/DSF Scavenger-Gunner | -2/Research Resources | -11 -10 -10 -10 -9 -8 -8 -8 -7 -7 -7 -6 -6 -6 -6 -6 -5 -5 -5 -5 -5 -4 -3 -3 -2 ----------- Run | Jun Mat Min Exi Min Mat Gar Mat Fac Was Fac Fac Gar Fac Low Low Fac Ext Cet Arc Hub Fac Res DSF Res Matter Collected 10509 | 207 173 57 . 10 863 703 443 478 88 1213 90 187 268 63 42 663 452 477 287 1017 1677 . 492 559 Remotely . | . . . . . . . . . . . . . . . . . . . . . . . . . Salvage Created 14716 | . 104 . . 25 936 914 670 362 554 1775 100 508 730 90 92 790 800 242 186 1522 2260 . 521 1535 Parts 664 | . 15 . . 7 51 58 35 17 7 92 6 15 31 4 . 21 22 7 3 72 110 . 17 74 Haulers Intercepted 3 | . . . . . 1 . 1 . . . . . . . . . . . . . 1 . . . Recyclers Shooed 6 | . . . . . 2 . . . . . . . . . . . . . . . 2 . . 2 Parts Field Recycled . | . . . . . . . . . . . . . . . . . . . . . . . . . Retrieved Matter . | . . . . . . . . . . . . . . . . . . . . . . . . . Parts Self-Destructed 3 | . . . . . . . . . . . . . . 3 . . . . . . . . . . Prevented 2 | . . . . . . . . . . . . . . 2 . . . . . . . . . . Kills | -11 -10 -10 -10 -9 -8 -8 -8 -7 -7 -7 -6 -6 -6 -6 -6 -5 -5 -5 -5 -5 -4 -3 -3 -2 ------- Run | Jun Mat Min Exi Min Mat Gar Mat Fac Was Fac Fac Gar Fac Low Low Fac Ext Cet Arc Hub Fac Res DSF Res Combat Hostiles Destroyed 249 | . 6 . . 4 16 25 13 11 2 36 1 9 5 2 1 18 8 6 4 25 37 . 10 10 Melee 13 | . . . . . . . 3 . . . . 3 . 1 . 5 . . . . . . . 1 Guns 64 | . 4 . . 1 9 21 4 3 2 13 . . . . . . . . 1 6 . . . . Cannons 130 | . 2 . . . 2 2 . 7 . 19 . 1 5 . . 10 8 6 3 18 30 . 8 9 AOE 28 | . . . . 3 5 2 5 . . 4 . . . . . . . . . 1 7 . 1 . Classes Destroyed 19 | . 3 . . . 7 1 1 . 1 2 . 1 . . . . 1 . . . . . 2 . Worker 15 | . . . . . 2 . 2 . . 2 . . 5 . . 2 . . . 2 . . . . Builder 21 | . . . . . 1 . 2 1 . 1 . . 5 . . 1 . . . . 2 . . 8 Tunneler 2 | . . . . . . . 1 . . . . . . . . 1 . . . . . . . . Hauler 3 | . . . . . 1 . 1 . . . . . . . . . . . . . 1 . . . Recycler 24 | . . . . . 1 . . . . 6 . . 2 . . 1 3 . . 2 2 . . 7 Operator 2 | . 1 . . . . . . . . . . . . . . . 1 . . . . . . . Watcher 19 | . 1 . . . 5 . 2 . . 2 2 . 3 . . . . . . 3 . . . 1 Swarmer 39 | . 6 . . 4 . 3 2 3 . 8 . . . . . 5 . 1 . 4 . . . 3 Grunt 89 | . . . . . 10 10 8 4 . 15 . . 3 . . 10 3 1 . 8 12 . 2 3 Brawler 2 | . . . . . . . . . . 2 . . . . . . . . . . . . . . Duelist 2 | . . . . . . . . . . 1 . . . . . . . . . 1 . . . . Sentry 39 | . . . . . 4 7 3 1 . 4 1 4 1 . . 1 3 . 4 2 3 . 1 . Specialist 5 | . . . . . . . . . . . . . . . . . . . . . . . 3 2 Hunter 17 | . . . . . 2 2 . 2 . . . . . 2 . . 1 1 . 3 2 . 2 . Programmer 46 | . . . . . . 3 . 1 . 6 . 3 1 . 1 2 . . . 6 20 . 1 2 Heavy 1 | . . . . . . . . . . . . . . . . . . . . . . . 1 . Behemoth 2 | . . . . . . . . . . . . . . . . . 1 . . 1 . . . . Compactor 2 | . . . . . . . . . 2 . . . . . . . . . . . . . . . Cetus Guard 3 | . . . . . . . . . . . . . . . . . . 3 . . . . . . Striker 2 | . . . . . . . . . . . . 2 . . . . . . . . . . . . Best Kill Streak 8 | . 3 . . 4 6 3 6 3 1 8 1 2 6 2 1 5 3 3 1 4 4 . 2 8 Combat Bots Only 7 | . 3 . . 4 6 3 4 3 1 7 1 2 2 2 1 5 1 3 1 3 4 . 2 2 Max Kills in Single Turn 5 | . 1 . . 2 2 1 4 1 1 2 1 1 2 1 1 1 1 1 1 2 3 . 1 5 Gunslinging . | . . . . . . . . . . . . . . . . . . . . . . . . . Exploded 3 | . . . . 2 2 1 3 . . 2 . . . . . . . . . 1 3 . 1 . Melee 1 | . . . . . . . 1 . . . . 1 . 1 . 1 . . . . . . . 1 Uniques/NPCs Destroyed . | . . . . . . . . . . . . . . . . . . . . . . . . . Combat | -11 -10 -10 -10 -9 -8 -8 -8 -7 -7 -7 -6 -6 -6 -6 -6 -5 -5 -5 -5 -5 -4 -3 -3 -2 -------- Run | Jun Mat Min Exi Min Mat Gar Mat Fac Was Fac Fac Gar Fac Low Low Fac Ext Cet Arc Hub Fac Res DSF Res Damage Taken 26911 | . 192 33 . 55 1339 1600 990 803 208 2740 123 618 463 399 92 1973 424 603 677 2942 1927 . 4991 3719 Core 4060 | . 31 . . . 171 257 95 65 125 289 16 59 57 43 . 173 14 21 21 91 52 . 992 1488 Absorbed by Shields 2396 | . . . . . . . . . . . . 386 82 116 . 148 67 . . 145 759 . 493 200 Reduced by Siege Mode 819 | . . . . . . . . . . 9 . . . . . 42 20 20 42 217 189 . 280 . Redirected to Shielding 584 | . . . . . 78 216 . 9 . 94 . . . . . 109 5 8 8 37 20 . . . Regen/Repaired (Parts) 2577 | . . . . . 202 . 134 231 . . 895 . . . . 468 . . . . 647 . . . Core Remaining (%) 60 | 100 . . . 87 . . 4 . . 31 . . . . 79 . . . . 68 95 . 23 . Volleys Fired 665 | . 23 . . 3 103 76 26 30 . 73 3 8 16 1 1 23 22 24 19 62 85 . 28 39 Largest 3 | . 2 . . 2 2 2 2 2 . 2 2 1 1 1 1 3 3 3 3 3 3 . 3 3 Hottest 251 | . 59 . . 53 72 64 56 76 . 96 96 66 66 66 66 171 208 208 208 241 203 . 201 251 Shots Fired 1607 | . 46 . . 6 206 152 44 72 72 182 6 9 17 3 2 67 68 73 48 176 215 . 72 71 Gun 630 | . 35 . . 3 160 130 37 43 72 72 . . . . . . . . 8 39 29 . . 2 Cannon 937 | . 11 . . . 43 16 . 29 . 106 6 9 17 3 2 67 68 73 40 135 179 . 66 67 Launcher 40 | . . . . 3 3 6 7 . . 4 . . . . . . . . . 2 7 . 6 2 Special . | . . . . . . . . . . . . . . . . . . . . . . . . . Kinetic 1215 | . 46 . . 3 203 134 37 57 . 129 6 9 17 3 2 67 46 49 39 98 163 . 57 50 Thermal 258 | . . . . . . 12 . 15 72 49 . . . . . . 22 24 9 39 . . . 16 Explosive 40 | . . . . 3 3 6 7 . . 4 . . . . . . . . . 2 7 . 6 2 Electromagnetic 94 | . . . . . . . . . . . . . . . . . . . . 37 45 . 9 3 Robot Hit Streak 26 | . 3 . . 1 13 17 7 11 24 26 5 2 6 3 . 16 21 8 16 16 21 . 13 13 Robot Miss Streak 8 | . 5 . . 2 6 6 4 8 1 4 2 3 1 . 1 3 5 4 2 4 3 . 3 3 Penetration Max 1 | . . . . . . . . . . 1 . . . . . 1 . . 1 1 1 . 1 1 Secondary Targets 1 | . . . . . . 1 . . . . . . . . . . . . . . . . . . Max Gunslinging Chain 1 | . . . . . . 1 . . . . . . . . . . . . . . . . . . Autonomous 152 | . . . . . . 12 . 15 73 52 . . . . . . . . . . . . . . Shots Hit Robots 1159 | . 20 . . 1 114 101 47 56 66 134 7 36 24 6 5 75 41 36 41 115 138 . 49 47 Core Hits 580 | . 9 . . 6 57 75 26 33 7 67 2 4 13 1 . 23 23 16 13 58 82 . 30 35 Critical Kills 53 | . . . . . . . 2 . . . . . 1 1 . 2 . . . 8 23 . 3 13 Critical Parts Destroyed 79 | . . . . . . . 4 1 . . . 13 2 2 2 6 . . . 4 30 . 1 14 Critical Strikes 162 | . . . . . . 2 6 1 . 5 . 14 5 3 2 11 4 1 4 14 56 . 6 28 Destroy 97 | . . . . . . 2 . 1 . . . . . . . . . . . 12 53 . 4 25 Blast 22 | . . . . . . . . . . 5 . . 2 . . 1 4 1 4 2 1 . 2 . Corrupt 3 | . . . . . . . . . . . . . . . . . . . . . 2 . . 1 Smash 40 | . . . . . . . 6 . . . . 14 3 3 2 10 . . . . . . . 2 Melee Attacks 167 | . . . . . . . 36 . . . 6 53 10 5 6 42 . . . 4 . . . 5 Impact 167 | . . . . . . . 36 . . . 6 53 10 5 6 42 . . . 4 . . . 5 Slashing . | . . . . . . . . . . . . . . . . . . . . . . . . . Piercing . | . . . . . . . . . . . . . . . . . . . . . . . . . Sneak Attacks 17 | . . . . . . . 4 . . . . . 9 . . 4 . . . . . . . . Combat Hostiles 1 | . . . . . . . 1 . . . . . . . . . . . . . . . . . Follow-up Attacks . | . . . . . . . . . . . . . . . . . . . . . . . . . Damage Inflicted 38201 | . 317 4 . 151 2350 2040 1599 1376 1977 4288 234 1691 2056 292 400 3409 1482 1304 1431 3682 4128 . 1743 2247 Guns 9260 | . 191 . . 14 1441 1726 285 876 1977 1546 . . . . . . . . 230 840 115 . . 19 Cannons 17552 | . 108 . . . 432 105 . 485 . 2354 89 80 542 58 . 1585 1482 1304 1201 2495 2503 . 1322 1407 Explosions 4476 | . . . . 115 454 209 478 . . 307 . . 213 . . . . . . 229 1370 . 421 680 Melee 6367 | . . . . . . . 836 . . . 145 1611 1211 234 400 1789 . . . . . . . 141 Ramming 546 | . 18 4 . 22 23 . . 15 . 81 . . 90 . . 35 . . . 118 140 . . . Kinetic 18934 | . 299 . . 14 1873 1454 285 921 . 2568 89 80 542 58 . 1585 1021 878 1201 1749 2277 . 1109 931 Thermal 7693 | . . . . . . 377 . 440 1977 1332 . . 213 . . . 461 426 230 917 863 . . 457 Explosive 3323 | . . . . 115 454 209 478 . . 307 . . . . . . . . . 152 507 . 421 680 Electromagnetic 1338 | . . . . . . . . . . . . . . . . . . . . 746 341 . 213 38 Impact 6367 | . . . . . . . 836 . . . 145 1611 1211 234 400 1789 . . . . . . . 141 Slashing . | . . . . . . . . . . . . . . . . . . . . . . . . . Piercing . | . . . . . . . . . . . . . . . . . . . . . . . . . Highest Corruption 22 | . 1 1 1 1 . 1 1 3 3 9 . 3 4 4 5 3 3 3 3 22 16 . 13 10 Average Corruption 4 | . 1 1 1 1 . 1 1 2 3 5 . 2 3 4 4 1 3 3 3 6 7 . 3 7 Corruption Purged . | . . . . . . . . . . . . . . . . . . . . . . . . . Corruption Blocked . | . . . . . . . . . . . . . . . . . . . . . . . . . Effects 414 | . . 1 1 2 . 14 12 17 4 95 . 7 24 8 5 6 44 17 10 56 82 . 5 4 Message Errors 98 | . . 1 . . . 6 3 5 1 14 . 3 10 . . . 13 5 . 21 16 . . . Matter Fused 96 | . . . . 1 . 2 1 2 . 30 . . 4 3 2 3 7 8 1 13 15 . 2 2 Heat Flow Errors 48 | . . . . . . . 1 2 1 13 . . 3 1 . 1 7 . 2 5 12 . . . Energy Discharges 46 | . . . . 1 . 2 2 2 . 10 . 3 2 . . 2 4 1 2 3 11 . . 1 Parts Rejected 6 | . . . . . . . 2 . 1 . . . 1 1 . . . . . . 1 . . . Parts Fused 3 | . . . . . . . . . . 1 . . . . . . 1 . . . 1 . . . Data Loss (minor) 61 | . . . 1 . . 1 2 2 1 15 . . 3 1 . . 6 1 2 5 18 . 2 1 Data Loss (major) 14 | . . . . . . 1 . 2 . 4 . . . . 2 . 2 . . 3 . . . . Misfires 20 | . . . . . . . 1 . . 2 . 1 1 2 1 . 2 1 1 4 4 . . . Alerts 9 | . . . . . . 2 . 1 . 1 . . . . . . 2 1 1 . 1 . . . Weapon Failures 13 | . . . . . . . . 1 . 5 . . . . . . . . 1 2 3 . 1 . Overload Shots . | . . . . . . . . . . . . . . . . . . . . . . . . . Overflow Damage 3459 | . 17 . . . . . 240 24 . 67 71 773 825 117 291 635 19 . 35 52 66 . 30 197 Projectiles 304 | . 17 . . . . . . 24 . 48 24 . . . . . 19 . 35 43 12 . 30 52 Explosions 285 | . . . . . . . 46 . . 17 . . 130 . . . . . . . 45 . . 47 Melee 2870 | . . . . . . . 194 . . 2 47 773 695 117 291 635 . . . 9 9 . . 98 Knockbacks 152 | . . . . 1 7 . 4 3 . 10 1 9 4 . 2 21 7 4 1 17 34 . 14 13 Impact 24 | . . . . 1 . . 4 1 . 1 . 7 2 . 2 1 . . . . 4 . . 1 Kinetic 116 | . . . . . 7 . . 2 . 9 1 . 2 . . 18 7 4 1 16 27 . 12 10 Secondary 12 | . . . . . . . . . . . . 2 . . . 2 . . . 1 3 . 2 2 Self-Inflicted Damage 850 | . . . . . 53 147 36 . . 139 . . 282 . . . . . . . 102 . . 91 Shots 20 | . . . . . 2 6 2 . . 3 . . 3 . . . . . . . 2 . . 2 Rammed 43 | . 4 2 . 2 7 . . 3 . 7 . . 3 . . 1 . . . 8 6 . . . Targets Rammed 44 | . 4 2 . 2 7 . . 3 . 7 . . 3 . . 1 . . . 8 7 . . . Kicked . | . . . . . . . . . . . . . . . . . . . . . . . . . Crushed 1 | . . . . . . . . . . . . . . . . . . . . . 1 . . . Highest Temperature 655 | . 24 . . . 191 138 141 285 266 287 40 107 271 275 32 372 254 238 491 557 443 . 655 575 Average Temperature 105 | . 10 . . . 47 52 67 131 144 74 18 31 84 102 16 107 74 82 161 142 132 . 102 244 Received Heat Transfer 4151 | . . . . . 504 540 423 171 . 612 36 38 46 7 . 511 134 63 90 275 177 . 434 90 Effects 45 | . . . . . . . . 1 . 2 . . . . . 1 . 3 2 11 10 . 3 12 Shutdowns 10 | . . . . . . . . . . . . . . . . 1 . . 2 2 1 . 2 2 Energy Bleed 8 | . . . . . . . . 1 . . . . . . . . . . . 1 3 . . 3 Interference 15 | . . . . . . . . . . 2 . . . . . . . 3 . 5 4 . . 1 Matter Decay 5 | . . . . . . . . . . . . . . . . . . . . 1 1 . 1 2 Short Circuit 2 | . . . . . . . . . . . . . . . . . . . . 1 . . . 1 Damage (minor) 3 | . . . . . . . . . . . . . . . . . . . . 1 1 . . 1 Damage (major) 2 | . . . . . . . . . . . . . . . . . . . . . . . . 2 Siege Activations 38 | . . . . . . . . . . 2 . . . . . 3 2 1 4 10 14 . 2 . Total Turns 1145 | . . . . . . . . . . 25 . . . . . 44 27 31 73 535 352 . 58 . Longest Duration 310 | . . . . . . . . . . 16 . . . . . 25 15 31 36 310 75 . 38 . Robots Corrupted . | . . . . . . . . . . . . . . . . . . . . . . . . . Combat Hostiles . | . . . . . . . . . . . . . . . . . . . . . . . . . Parts Fried 48 | . . . . . . . 10 . . . . 6 11 . . 12 3 . . 2 1 . 1 2 Impact Corruptions 83 | . . . . . . . 7 . . 1 1 23 17 2 8 17 . . . 1 2 . . 4 Robots Melted 1 | . . . . . . . . 1 . . . . . . . . . . . . . . . . Combat Hostiles 1 | . . . . . . . . 1 . . . . . . . . . . . . . . . . Parts Melted 10 | . . . . . . . . 4 . 3 . . 1 . . . . . . 1 . . 1 . Heat Transferred 8879 | . . . . . . 444 . 555 2516 1665 . . 150 . . . 555 518 296 1173 600 . . 407 Parts Sabotaged . | . . . . . . . . . . . . . . . . . . . . . . . . . Parts Stolen . | . . . . . . . . . . . . . . . . . . . . . . . . . Parts Stripped . | . . . . . . . . . . . . . . . . . . . . . . . . . Power Chain Reactions 2 | . . . . . . . . . . . . . . . . . . . . 1 1 . . . Missiles Intercepted . | . . . . . . . . . . . . . . . . . . . . . . . . . Alert | -11 -10 -10 -10 -9 -8 -8 -8 -7 -7 -7 -6 -6 -6 -6 -6 -5 -5 -5 -5 -5 -4 -3 -3 -2 ------- Run | Jun Mat Min Exi Min Mat Gar Mat Fac Was Fac Fac Gar Fac Low Low Fac Ext Cet Arc Hub Fac Res DSF Res Peak Influence 1146 | . 142 8 . 112 308 1146 865 272 16 368 243 648 401 . . 199 582 585 330 262 851 449 485 328 Initial 558 | . . 8 . . 43 114 558 272 14 11 170 . 340 . . 93 56 325 226 45 94 446 336 204 Average 256 | . 30 8 . 104 162 595 677 134 15 200 114 294 241 . . 76 229 375 297 154 339 446 402 219 Maximum Alert Level 4 | . . . . . 1 4 3 1 . 1 1 2 2 . . . 2 2 1 1 3 2 2 1 Low Security (%) 51 | 100 100 100 . 100 79 7 . 71 100 42 63 38 28 . . 100 51 . 2 85 46 . . 20 Level 1 25 | . . . . . 20 23 . 28 . 57 36 25 61 . . . 28 44 97 14 2 . 36 79 Level 2 17 | . . . . . . 32 63 . . . . 36 9 . . . 20 55 . . 39 100 63 . Level 3 5 | . . . . . . 29 36 . . . . . . . . . . . . . 11 . . . Level 4 . | . . . . . . 6 . . . . . . . . . . . . . . . . . . Level 5 . | . . . . . . . . . . . . . . . . . . . . . . . . . High Security . | . . . . . . . . . . . . . . . . . . . . . . . . . Max Security . | . . . . . . . . . . . . . . . . . . . . . . . . . Sterilizations 1 | . . . . . . . . . . . . . . . . . . . . . . . 1 . Squads Dispatched 59 | . 1 . . . 2 . 1 5 . 11 1 . 1 . . 4 2 1 . 7 16 . 2 5 Investigation 9 | . . . . . 1 . 1 1 . 2 . . . . . 1 1 1 . . 1 . . . Extermination 26 | . . . . . . . . 1 . 7 1 . 1 . . 2 . . . 3 9 . . 2 Reinforcement 19 | . 1 . . . 1 . . . . 2 . . . . . 1 1 . . 4 4 . 2 3 Assault 2 | . . . . . . . . . . . . . . . . . . . . . 2 . . . Garrison 3 | . . . . . . . . 3 . . . . . . . . . . . . . . . . Intercept . | . . . . . . . . . . . . . . . . . . . . . . . . . Searches Triggered . | . . . . . . . . . . . . . . . . . . . . . . . . . Construction Impeded 6 | . . . . . . . . . . 2 . . . . . 1 . . . . 1 . . 2 Haulers Reinforced 2 | . . . . . . . . . . . . . . . . . . . . 2 . . . . Active Scanning Responses . | . . . . . . . . . . . . . . . . . . . . . . . . . Cargo Convoy Interrupts . | . . . . . . . . . . . . . . . . . . . . . . . . . Stealth | -11 -10 -10 -10 -9 -8 -8 -8 -7 -7 -7 -6 -6 -6 -6 -6 -5 -5 -5 -5 -5 -4 -3 -3 -2 --------- Run | Jun Mat Min Exi Min Mat Gar Mat Fac Was Fac Fac Gar Fac Low Low Fac Ext Cet Arc Hub Fac Res DSF Res Distress Signals 18 | . 1 . . . 4 1 3 . . 3 . . 1 . . . 1 2 . 1 . . . 1 Communications Jammed 22 | . . . . . . . . . . . . . . . . . . . . 17 . . . 5 Distress Signals 22 | . . . . . . . . . . . . . . . . . . . . 17 . . . 5 Times Spotted 439 | . 12 3 . 4 42 31 22 13 6 49 3 15 10 7 1 25 27 34 13 40 39 . 19 24 Peak Tracking Total 9 | . 3 3 . 4 8 4 4 3 4 6 1 4 3 4 1 5 4 5 1 8 5 . 7 9 Tactical Retreats 31 | . 1 . . . 3 6 2 1 . 1 . 2 . 1 . 4 3 . . 3 2 . 1 1 Traps | -11 -10 -10 -10 -9 -8 -8 -8 -7 -7 -7 -6 -6 -6 -6 -6 -5 -5 -5 -5 -5 -4 -3 -3 -2 ------- Run | Jun Mat Min Exi Min Mat Gar Mat Fac Was Fac Fac Gar Fac Low Low Fac Ext Cet Arc Hub Fac Res DSF Res Traps Triggered 21 | . 1 1 . . . . 1 4 . 2 . . 2 . . 1 8 . . . . . . 1 Indirectly . | . . . . . . . . . . . . . . . . . . . . . . . . . Trap Hack Attempts . | . . . . . . . . . . . . . . . . . . . . . . . . . Triggered . | . . . . . . . . . . . . . . . . . . . . . . . . . Disarmed . | . . . . . . . . . . . . . . . . . . . . . . . . . Reprogrammed . | . . . . . . . . . . . . . . . . . . . . . . . . . Reused . | . . . . . . . . . . . . . . . . . . . . . . . . . Traps Extracted . | . . . . . . . . . . . . . . . . . . . . . . . . . Installed . | . . . . . . . . . . . . . . . . . . . . . . . . . Triggered 3 | . . . . . . . . . . . . . . 2 . . 1 . . . . . . . Machines | -11 -10 -10 -10 -9 -8 -8 -8 -7 -7 -7 -6 -6 -6 -6 -6 -5 -5 -5 -5 -5 -4 -3 -3 -2 ---------- Run | Jun Mat Min Exi Min Mat Gar Mat Fac Was Fac Fac Gar Fac Low Low Fac Ext Cet Arc Hub Fac Res DSF Res Machines Disabled 56 | . . . . . 3 5 2 1 . 7 1 6 4 . . 4 3 3 2 4 11 . . . Max in Single Turn 5 | . . . . . 2 2 1 1 . 2 1 1 3 . . 4 1 1 1 1 5 . . . Garrison Access 3 | . . . . . . . . . . . . . . . . . . . . 2 1 . . . Garrison Relay 6 | . . . . . . 2 . . . . . 4 . . . . . . . . . . . . Phase Generator 1 | . . . . . . 1 . . . . . . . . . . . . . . . . . . Network Hub 2 | . . . . . . . . . . . . . . . . . . . . 2 . . . . Machines Repaired . | . . . . . . . . . . . . . . . . . . . . . . . . . Machines Sabotaged . | . . . . . . . . . . . . . . . . . . . . . . . . . Overloaded Fab Kills . | . . . . . . . . . . . . . . . . . . . . . . . . . Hacking | -11 -10 -10 -10 -9 -8 -8 -8 -7 -7 -7 -6 -6 -6 -6 -6 -5 -5 -5 -5 -5 -4 -3 -3 -2 --------- Run | Jun Mat Min Exi Min Mat Gar Mat Fac Was Fac Fac Gar Fac Low Low Fac Ext Cet Arc Hub Fac Res DSF Res Machines Accessed 63 | . 1 1 1 . 6 4 4 5 . 9 3 1 1 . . 6 9 1 1 3 6 1 . . Terminals 34 | . 1 . . . 4 4 2 2 . 4 1 1 . . . 3 9 1 . 1 . 1 . . Fabricators 5 | . . . . . . . . 1 . 2 . . . . . 1 . . . . 1 . . . Repair Stations 11 | . . . . . 1 . 1 1 . 2 1 . 1 . . 1 . . . . 3 . . . Recycling Units 2 | . . . . . . . 1 . . . . . . . . . . . . . 1 . . . Scanalyzers 2 | . . . . . . . . . . 1 . . . . . 1 . . . . . . . . Garrison Access 6 | . . . . . 1 . . 1 . . 1 . . . . . . . . 2 1 . . . Total Hacks 167 | . 7 1 1 . 16 4 13 12 . 18 10 1 2 . . 15 17 2 25 4 18 1 . . Successful 106 | . 3 1 1 . 10 4 6 8 . 10 7 1 1 . . 6 9 . 25 3 10 1 . . Failed 61 | . 4 . . . 6 . 7 4 . 8 3 . 1 . . 9 8 2 . 1 8 . . . Catastrophic 10 | . . . . . 2 . 1 . . 1 1 . . . . . . 1 . . 4 . . . Database Lockouts . | . . . . . . . . . . . . . . . . . . . . . . . . . Manual 36 | . 3 . 1 . 9 . 5 2 . 5 . . . . . 6 3 1 . . 1 . . . Terminals 69 | . 7 . . . 11 4 5 4 . 6 2 1 . . . 7 17 2 . 2 . 1 . . Fabricators 13 | . . . . . . . . 2 . 6 . . . . . 2 . . . . 3 . . . Repair Stations 41 | . . . . . 4 . 4 4 . 3 7 . 2 . . 4 . . . . 13 . . . Recycling Units 5 | . . . . . . . 4 . . . . . . . . . . . . . 1 . . . Scanalyzers 5 | . . . . . . . . . . 3 . . . . . 2 . . . . . . . . Garrison Access 7 | . . . . . 1 . . 2 . . 1 . . . . . . . . 2 1 . . . Terminal Hacks 48 | . 1 1 1 . 1 4 2 . . 2 . 1 . . . 1 7 . 25 1 . 1 . . Record 26 | . . . . . . . . . . 1 . . . . . . . . 25 . . . . . Open Door 9 | . . 1 . . . . . . . . . . . . . 1 7 . . . . . . . Open DSF 1 | . . . . . . . . . . . . . . . . . . . . . . 1 . . Level Access Points 2 | . . . . . . . 1 . . 1 . . . . . . . . . . . . . . Emergency Access Points 2 | . . . . . . 1 . . . . . 1 . . . . . . . . . . . . Locate Traps 2 | . . . . . 1 . . . . . . . . . . . . . . 1 . . . . Zone Layout 2 | . 1 . . . . . 1 . . . . . . . . . . . . . . . . . Garrison Registry 1 | . . . . . . 1 . . . . . . . . . . . . . . . . . . Patrol Navigation 1 | . . . . . . 1 . . . . . . . . . . . . . . . . . . Security Stations 1 | . . . . . . 1 . . . . . . . . . . . . . . . . . . EX-Prototype ID Bank 1 | . . . 1 . . . . . . . . . . . . . . . . . . . . . Fabricator Hacks 6 | . . . . . . . . 1 . 3 . . . . . . . . . . 2 . . . Network Status 1 | . . . . . . . . 1 . . . . . . . . . . . . . . . . Load Schematic 3 | . . . . . . . . . . 2 . . . . . . . . . . 1 . . . Build 2 | . . . . . . . . . . 1 . . . . . . . . . . 1 . . . Repair Station Hacks 29 | . . . . . 4 . 3 4 . 2 6 . 1 . . 3 . . . . 6 . . . Scan Component 17 | . . . . . 2 . 2 2 . 1 3 . 1 . . 2 . . . . 4 . . . Repair 12 | . . . . . 2 . 1 2 . 1 3 . . . . 1 . . . . 2 . . . Recycling Unit Hacks 2 | . . . . . . . 1 . . . . . . . . . . . . . 1 . . . Retrieve Matter 1 | . . . . . . . 1 . . . . . . . . . . . . . . . . . Retrieve Components 1 | . . . . . . . . . . . . . . . . . . . . . 1 . . . Scanalyzer 3 | . . . . . . . . . . 2 . . . . . 1 . . . . . . . . Insert Component 2 | . . . . . . . . . . 1 . . . . . 1 . . . . . . . . Analyze 1 | . . . . . . . . . . 1 . . . . . . . . . . . . . . Garrison Access Hacks 7 | . . . . . 1 . . 2 . . 1 . . . . . . . . 2 1 . . . Unlock Access 3 | . . . . . 1 . . 1 . . 1 . . . . . . . . . . . . . Seal Access 3 | . . . . . . . . . . . . . . . . . . . . 2 1 . . . Coupler Status 1 | . . . . . . . . 1 . . . . . . . . . . . . . . . . Unauthorized Hacks 11 | . 2 . . . 4 . . 1 . 1 . . . . . 1 2 . . . . . . . Terminals 11 | . 2 . . . 4 . . 1 . 1 . . . . . 1 2 . . . . . . . Assimilate 2 | . . . . . . . . . . 1 . . . . . 1 . . . . . . . . Botnet 6 | . 1 . . . 3 . . . . . . . . . . . 2 . . . . . . . Operators 3 | . 1 . . . 1 . . 1 . . . . . . . . . . . . . . . . Fabricators . | . . . . . . . . . . . . . . . . . . . . . . . . . Repair Stations . | . . . . . . . . . . . . . . . . . . . . . . . . . Recycling Units . | . . . . . . . . . . . . . . . . . . . . . . . . . Scanalyzers . | . . . . . . . . . . . . . . . . . . . . . . . . . Garrison Access . | . . . . . . . . . . . . . . . . . . . . . . . . . Data Cores Recovered . | . . . . . . . . . . . . . . . . . . . . . . . . . Used . | . . . . . . . . . . . . . . . . . . . . . . . . . Hacking Detections 41 | . 1 . . . 5 3 4 2 . 9 2 . 1 . . 5 3 1 . 1 4 . . . Full Trace Events 7 | . . . . . 1 . 1 . . 2 . . . . . . 1 1 . . 1 . . . Feedback Events . | . . . . . . . . . . . . . . . . . . . . . . . . . Feedback Blocked 1 | . . . . . . . . . . 1 . . . . . . . . . . . . . . Robot Schematics Acquired . | . . . . . . . . . . . . . . . . . . . . . . . . . Robots Built . | . . . . . . . . . . . . . . . . . . . . . . . . . Authchips . | . . . . . . . . . . . . . . . . . . . . . . . . . Time . | . . . . . . . . . . . . . . . . . . . . . . . . . Total Robot Build Rating . | . . . . . . . . . . . . . . . . . . . . . . . . . Part Schematics Acquired 1 | . . . . . . . . . . 1 . . . . . . . . . . . . . . Parts Built 4 | . . . . . . . . . . 2 . . . . . . . . . . 2 . . . Authchips . | . . . . . . . . . . . . . . . . . . . . . . . . . Time 159 | . . . . . . . . . . 106 . . . . . . . . . . 53 . . . Total Part Build Rating 24 | . . . . . . . . . . 12 . . . . . . . . . . 12 . . . Parts Repaired 10 | . . . . . 2 . 1 2 . . 3 . . . . 1 . . . . 1 . . . Time 606 | . . . . . 52 . 26 70 . 44 132 . . . . 78 . . . . 204 . . . Parts Recycled . | . . . . . . . . . . . . . . . . . . . . . . . . . Recycled Matter . | . . . . . . . . . . . . . . . . . . . . . . . . . Retrieved Matter . | . . . . . . . . . . . . . . . . . . . . . . . . . Retrieved Components 1 | . . . . . . . . . . . . . . . . . . . . . 1 . . . Parts Scanalyzed 2 | . . . . . . . . . . 1 . . . . . 1 . . . . . . . . Part Schematics Acquired 1 | . . . . . . . . . . 1 . . . . . . . . . . . . . . Parts Damaged . | . . . . . . . . . . . . . . . . . . . . . . . . . Bothacking | -11 -10 -10 -10 -9 -8 -8 -8 -7 -7 -7 -6 -6 -6 -6 -6 -5 -5 -5 -5 -5 -4 -3 -3 -2 ------------ Run | Jun Mat Min Exi Min Mat Gar Mat Fac Was Fac Fac Gar Fac Low Low Fac Ext Cet Arc Hub Fac Res DSF Res Used RIF Installer 3 | . . . . . . 2 . . . . . 1 . . . . . . . . . . . . Threat Obfuscator 1 | . . . . . . 1 . . . . . . . . . . . . . . . . . . Patrol Navigation 1 | . . . . . . . . . . . . 1 . . . . . . . . . . . . Robots Hacked . | . . . . . . . . . . . . . . . . . . . . . . . . . Non-combat . | . . . . . . . . . . . . . . . . . . . . . . . . . Combat . | . . . . . . . . . . . . . . . . . . . . . . . . . Robot Hacks Applied . | . . . . . . . . . . . . . . . . . . . . . . . . . Relay Couplers Released 24 | . . . . . . 8 . . . . . 14 . . . . . . . 2 . . . . Machine Destruction 24 | . . . . . . 8 . . . . . 14 . . . . . . . 2 . . . . Fabnet Peak Effective % . | . . . . . . . . . . . . . . . . . . . . . . . . . Robots Rewired 15 | . . . . . . . . . . . . 1 . . . . 14 . . . . . . . Allies Hacked . | . . . . . . . . . . . . . . . . . . . . . . . . . Hacks Repelled . | . . . . . . . . . . . . . . . . . . . . . . . . . Allies | -11 -10 -10 -10 -9 -8 -8 -8 -7 -7 -7 -6 -6 -6 -6 -6 -5 -5 -5 -5 -5 -4 -3 -3 -2 -------- Run | Jun Mat Min Exi Min Mat Gar Mat Fac Was Fac Fac Gar Fac Low Low Fac Ext Cet Arc Hub Fac Res DSF Res Total Allies 30 | . . . . . . . . . . 1 . 1 . . . 1 25 2 . . . . . . Largest Group 20 | . . . . . . . . . . 1 . 1 1 . . 1 20 20 . . . . . . Highest-Rated Group 682 | . . . . . . . . . . 10 . 119 119 . . 10 682 682 . . . . . . Highest-Rated Ally 159 | . . . . . . . . . . 10 . 119 119 . . 10 159 137 . . . . . . Total Orders . | . . . . . . . . . . . . . . . . . . . . . . . . . Ally Attacks 344 | . . . . . . . . . . . . 7 5 . . . 199 133 . . . . . . Total Damage 9113 | . . . . . . . . . . . . 374 272 . . . 4372 4095 . . . . . . Kills 59 | . . . . . . . . . . . . 3 1 . . . 23 32 . . . . . . Allies Corrupted . | . . . . . . . . . . . . . . . . . . . . . . . . . Allies Melted 1 | . . . . . . . . . . . . . . . . . . 1 . . . . . . Intel | -11 -10 -10 -10 -9 -8 -8 -8 -7 -7 -7 -6 -6 -6 -6 -6 -5 -5 -5 -5 -5 -4 -3 -3 -2 ------- Run | Jun Mat Min Exi Min Mat Gar Mat Fac Was Fac Fac Gar Fac Low Low Fac Ext Cet Arc Hub Fac Res DSF Res Robot Analysis Total . | . . . . . . . . . . . . . . . . . . . . . . . . . Derelict Logs Recovered 3 | . . . . . . . . . . . . . . 2 1 . . . . . . . . . Drone Launches . | . . . . . . . . . . . . . . . . . . . . . . . . . Drone Recoveries . | . . . . . . . . . . . . . . . . . . . . . . . . . Exploration | -11 -10 -10 -10 -9 -8 -8 -8 -7 -7 -7 -6 -6 -6 -6 -6 -5 -5 -5 -5 -5 -4 -3 -3 -2 ------------- Run | Jun Mat Min Exi Min Mat Gar Mat Fac Was Fac Fac Gar Fac Low Low Fac Ext Cet Arc Hub Fac Res DSF Res Turns Passed 30314 | 68 1150 248 349 192 2521 2057 1140 1409 359 3685 864 1188 1406 307 342 1769 1980 1135 412 2224 4507 45 426 531 Spaces Moved 12919 | 36 664 145 218 111 1030 1020 385 611 254 1422 350 639 797 163 205 755 767 475 184 889 1497 28 124 150 Core 6 | 2 . . . . . . . 2 . . . . . . . . . . . . . . 1 1 Treads 11377 | 34 664 145 218 111 924 1020 385 561 . 469 350 639 797 163 205 755 767 475 184 889 1497 28 97 . Legs . | . . . . . . . . . . . . . . . . . . . . . . . . . Wheels 1361 | . . . . . 106 . . 48 254 953 . . . . . . . . . . . . . . Hover 175 | . . . . . . . . . . . . . . . . . . . . . . . 26 149 Flight . | . . . . . . . . . . . . . . . . . . . . . . . . . Fastest Speed 50 | 50 160 160 160 160 140 160 160 130 100 145 160 160 160 160 160 160 160 160 160 160 160 160 150 150 Average Speed 181 | 153 160 160 160 160 176 160 215 200 129 181 185 160 160 160 160 160 223 215 160 160 227 160 180 226 Slowest Speed 2450 | 160 160 160 160 160 320 160 240 1100 145 240 240 160 160 160 160 160 240 320 160 160 240 160 2450 1350 Overloaded Moves . | . . . . . . . . . . . . . . . . . . . . . . . . . Propulsion Burnouts . | . . . . . . . . . . . . . . . . . . . . . . . . . Robots Hopped . | . . . . . . . . . . . . . . . . . . . . . . . . . Cave-ins Triggered . | . . . . . . . . . . . . . . . . . . . . . . . . . Exploration Rate (%) 43 | 4 95 32 61 31 58 87 27 11 79 32 7 65 19 33 24 10 81 76 97 59 23 1 72 6 Regions Visited 24 Branch Regions 9 Pre-discovered Areas . | . . . . . . . . . . . . . . . . . . . . . . . . . Known Exits Taken 11 | . . . . . 1 . 1 . . 1 1 . 1 1 . 1 . 1 1 1 . 1 . . Unknown Exits Taken 8 | 1 1 1 1 1 . . . . . . . . . . 1 . 1 . . . 1 . . . Scrap Searched 1 | . . 1 . . . . . . . . . . . . . . . . . . . . . . Spaces Dug 12 | . . . . . . . 2 . . 1 2 2 . . . 1 . . . 4 . . . . Terrain Destroyed 658 | . 2 . . 29 16 106 73 3 2 48 3 2 63 . 2 24 23 30 2 53 135 . 29 13 Melee 11 | . . . . . . . 2 . . . 2 2 . . . 1 . . . 4 . . . . Projectile 179 | . 2 . . . 2 . . 3 2 23 1 . 1 . 2 23 23 30 2 29 18 . 10 8 AOE 468 | . . . . 29 14 106 71 . . 25 . . 62 . . . . . . 20 117 . 19 5 Terrain Rammed . | . . . . . . . . . . . . . . . . . . . . . . . . . Walls Destroyed . | . . . . . . . . . . . . . . . . . . . . . . . . . Machines Disabled . | . . . . . . . . . . . . . . . . . . . . . . . . . Actions | -11 -10 -10 -10 -9 -8 -8 -8 -7 -7 -7 -6 -6 -6 -6 -6 -5 -5 -5 -5 -5 -4 -3 -3 -2 --------- Run | Jun Mat Min Exi Min Mat Gar Mat Fac Was Fac Fac Gar Fac Low Low Fac Ext Cet Arc Hub Fac Res DSF Res Total 18233 | 45 702 161 218 118 1531 1307 586 730 283 2400 559 754 905 201 213 1215 983 540 261 1544 2409 28 262 278 Wait 3788 | . 4 11 . . 352 175 116 49 11 843 146 42 52 31 . 366 62 16 55 546 770 . 90 51 Move 12895 | 35 663 144 217 110 1029 1018 384 611 253 1421 349 637 796 162 204 754 766 474 183 889 1496 27 123 150 Hop . | . . . . . . . . . . . . . . . . . . . . . . . . . Pick Up 155 | 3 5 2 1 . 10 3 6 9 3 25 27 4 7 . 1 4 9 7 1 8 16 . 3 1 Fast Attach 95 | 6 1 . . . 8 6 5 10 8 8 6 1 6 1 . 3 1 2 1 5 5 . 7 5 Attach 102 | . . . . 2 5 5 8 5 1 12 6 2 1 . 1 9 2 3 1 5 9 1 6 18 Detach 37 | . . 2 . . 1 3 . 4 4 6 3 1 . . . 2 . 2 . 3 . . . 6 Swap 86 | 1 2 . . 1 7 12 5 5 . 5 3 . 4 1 . 10 2 2 . 7 12 . 5 2 Drop 77 | . . . . . 9 9 . 4 3 . 10 . 10 . . 1 2 10 1 8 9 . . 1 Fire 665 | . 23 . . 3 103 76 26 30 . 73 3 8 16 1 1 23 22 24 19 62 85 . 28 39 Melee 167 | . . . . . . . 36 . . . 6 53 10 5 6 42 . . . 4 . . . 5 Ram 9 | . . . . . 3 . . . . 6 . . . . . . . . . . . . . . Kick . | . . . . . . . . . . . . . . . . . . . . . . . . . Crush 34 | . 4 2 . 2 4 . . 3 . 1 . . 3 . . 1 . . . 7 7 . . . Escape Stasis 16 | . . . . . . . . . . . . . . . . . 16 . . . . . . . Rewire 107 | . . . . . . . . . . . . 6 . . . . 101 . . . . . . . Trap . | . . . . . . . . . . . . . . . . . . . . . . . . . Miscellaneous . | . . . . . . . . . . . . . . . . . . . . . . . . . Route ------- -11/Junkyard -10/Materials (discovered 5 exits: [*Mat x3] / *Min x2) -10/Mines -10/Exiles -9/Mines -8/Materials (discovered 4 exits: *Fac x2 / *Sto / Gar) -8/Garrison (discovered 4 exits: *Mat x4) -8/Materials (discovered 4 exits: *Fac x3 / *Sto) -7/Factory (discovered 2 exits: [*Low] / Gar) -7/Waste -7/Factory (discovered 4 exits: *Fac x4) -6/Factory (discovered 3 exits: *Fac / *Low / Gar) -6/Garrison (discovered 2 exits: *Fac x2) -6/Factory -6/Lower Caves -6/Lower Caves -5/Factory -5/Extension (discovered 2 exits: *Fac / *Cet) -5/Cetus (discovered 3 exits: *Fac x2 / *Arc) -5/Archives (discovered 3 exits: *Fac / *Hub x2) -5/Hub_04(d) (discovered 2 exits: *Fac x2) -4/Factory (discovered 2 exits: *Res / [*Upp]) -3/Research -3/DSF -2/Research History --------- Turn | Location | Event 33 | -11/Junkyard | Discovered new exit (range 16) 69 | -11/Junkyard | Entered Materials 135 | -10/Materials | Discovered new exit (range 13) 196 | -10/Materials | Discovered new exit (range 8) 215 | -10/Materials | Met 8R-AWN 316 | -10/Materials | Build established: Mutant 361 | -10/Materials | Discovered new exit (range 15) 462 | -10/Materials | Discovered new exit (range 8) 757 | -10/Materials | Discovered new exit (range 16) 1219 | -10/Materials | Entered Mines 1220 | -10/Mines | Followed 8R-AWN into the Mines 1354 | -10/Mines | Discovered new exit (range 5) 1392 | -10/Mines | Met a Derelict who couldn't figure out how to use a Trap Extractor 1467 | -10/Mines | Entered Exiles 1507 | -10/Exiles | Welcomed by 8R-AWN 1533 | -10/Exiles | Met EX-HEX 1586 | -10/Exiles | Met EX-BIN 1605 | -10/Exiles | Aligned with FarCom system 1607 | -10/Exiles | Given EX-Vault access code 1643 | -10/Exiles | Opened EX-Vault 1653 | -10/Exiles | Found AWS/Thermal 1688 | -10/Exiles | Warned to stay clear of 0b10 Research branches 1736 | -10/Exiles | Met EX-DEC 1803 | -10/Exiles | Discovered new exit (range 10) 1816 | -10/Exiles | Left Exiles lab with AWS/Thermal 1816 | -10/Exiles | Entered Mines 1902 | -9/Mines | Assembled infested the area 1907 | -9/Mines | Assisted by a Guerilla fighting off Assembled 1994 | -9/Mines | Discovered new exit (range 9) 2008 | -9/Mines | Entered Materials 2008 | -8/Materials | Evolved 4 slots: Propulsion x1, Utility x3 3006 | -8/Materials | Discovered new exit (range 16) 3492 | -8/Materials | Build established: Scavenger-Mutant 4036 | -8/Materials | Discovered new exit (range 11) 4146 | -8/Materials | Repaired Lgt. Armor Plating 4173 | -8/Materials | Repaired Lgt. Treads 4282 | -8/Materials | Discovered new exit (range 8) 4457 | -8/Materials | Identified exit to Garrison 4529 | -8/Materials | Entered Garrison 4568 | -8/Garrison | Triggered checkpoint 4679 | -8/Garrison | Garrison Relay disabled 4794 | -8/Garrison | Phase Generator disabled 5182 | -8/Garrison | Triggered checkpoint 5296 | -8/Garrison | Core integrity fell below 50% 5325 | -8/Garrison | Installed Relay Interface Framework 5354 | -8/Garrison | Discovered new exit (range 10) 5670 | -8/Garrison | Triggered checkpoint 5810 | -8/Garrison | Triggered checkpoint 5886 | -8/Garrison | Learned Materials security intel 5957 | -8/Garrison | Discovered new exit (range 11) 6048 | -8/Garrison | Discovered new exit (range 85) 6048 | -8/Garrison | Discovered new exit (range 64) 6048 | -8/Garrison | Discovered new exit (range 15) 6048 | -8/Garrison | Discovered new exit (range 41) 6136 | -8/Garrison | Triggered checkpoint 6341 | -8/Garrison | Expanded RIF knowledge: Threat Obfuscation 6366 | -8/Garrison | Triggered checkpoint 6428 | -8/Garrison | Garrison Relay disabled 6491 | -8/Garrison | Lost 4 parts (1p1n2u) 6586 | -8/Garrison | Entered Materials 6635 | -8/Materials | Discovered new exit (range 8) 6651 | -8/Materials | Identified exit to Storage 6848 | -8/Materials | Core integrity fell below 20% 6883 | -8/Materials | Lost 4 parts (1p1n1u1w) 6993 | -8/Materials | Repaired Lgt. Treads 7486 | -8/Materials | Identified exit to Factory 7726 | -8/Materials | Entered Factory 7726 | -7/Factory | Evolved 2 slots: Power x1, Utility x1 8193 | -7/Factory | Repaired Broken Hvy. Assault Rifle? 8245 | -7/Factory | Repaired Lgt. Treads? 8454 | -7/Factory | Garrison activated, responded to threat 8524 | -7/Factory | Discovered new exit (range 5) 8612 | -7/Factory | Identified exit to Garrison 8710 | -7/Factory | Lost 3 parts (1p1n1u) 9135 | -7/Factory | Sucked down chute 9135 | -7/Factory | Entered Waste 9160 | -7/Waste | Spotted C-40 Crusher 9192 | -7/Waste | Destroyed C-40 Crusher 9193 | -7/Waste | Spotted C-40 Crusher 9220 | -7/Waste | Destroyed C-40 Crusher 9255 | -7/Waste | Spotted C-40 Crusher 9257 | -7/Waste | Spotted C-40 Crusher 9278 | -7/Waste | Spotted C-40 Crusher 9288 | -7/Waste | Crushed by Compactor (0 parts destroyed, 1 dropped) 9289 | -7/Waste | Crushed by Compactor (0 parts destroyed, 2 dropped) 9292 | -7/Waste | Crushed by Compactor (0 parts destroyed, 2 dropped) 9295 | -7/Waste | Crushed by Compactor (0 parts destroyed, 1 dropped) 9298 | -7/Waste | Crushed by Compactor (0 parts destroyed, 1 dropped) 9414 | -7/Waste | Spotted C-40 Crusher 9443 | -7/Waste | Build established: Mutant 9475 | -7/Waste | Discovered new exit (range 11) 9492 | -7/Waste | Identified exit to Factory 9494 | -7/Waste | Entered Factory 10079 | -7/Factory | Destroyed 7 combat bots 10301 | -7/Factory | Fabricated Hvy. Treads? 11387 | -7/Factory | Core integrity fell below 50% 12635 | -7/Factory | Identified exit to Factory 13179 | -7/Factory | Entered another Factory area 13179 | -6/Factory | Evolved 2 slots: Propulsion x1, Utility x1 13328 | -6/Factory | Discovered new exit (range 5) 13665 | -6/Factory | Discovered new exit (range 9) 13794 | -6/Factory | Repaired Huge Storage Unit 13944 | -6/Factory | Repaired Imp. Hardlight Generator 14002 | -6/Factory | Repaired Hvy. Treads 14042 | -6/Factory | Identified exit to Garrison 14043 | -6/Factory | Entered Garrison 14150 | -6/Garrison | Triggered checkpoint 14173 | -6/Garrison | Warlord forces raided the area 14179 | -6/Garrison | Garrison Relay disabled 14242 | -6/Garrison | Triggered checkpoint 14266 | -6/Garrison | Triggered checkpoint 14302 | -6/Garrison | Triggered checkpoint 14308 | -6/Garrison | Triggered checkpoint 14322 | -6/Garrison | Triggered checkpoint 14412 | -6/Garrison | Discovered new exit (range 10) 14546 | -6/Garrison | Expanded RIF knowledge: Patrol Navigation 14592 | -6/Garrison | Garrison Relay disabled 14766 | -6/Garrison | Garrison Relay disabled 14778 | -6/Garrison | Garrison Relay disabled 14998 | -6/Garrison | Triggered checkpoint 15011 | -6/Garrison | Spotted Striker 15011 | -6/Garrison | Spotted Striker 15031 | -6/Garrison | Destroyed Striker 15037 | -6/Garrison | Destroyed Striker 15061 | -6/Garrison | Rewired Executioner 15201 | -6/Garrison | Discovered new exit (range 10) 15231 | -6/Garrison | Entered Factory 15231 | -6/Factory | Accompanied by 1 ally 15706 | -6/Factory | Found Prototype Processor 15957 | -6/Factory | Discovered new exit (range 15) 16581 | -6/Factory | Identified exit to Lower Caves 16637 | -6/Factory | Entered Lower Caves 16668 | -6/Lower Caves | Identified exit to Lower Caves 16679 | -6/Lower Caves | Learned 4 Factory zone layouts 16944 | -6/Lower Caves | Entered another Lower Caves area 17155 | -6/Lower Caves | Discovered new exit (range 7) 17286 | -6/Lower Caves | Entered Factory 17286 | -5/Factory | Evolved 2 slots: Utility x1, Weapon x1 17287 | -5/Factory | Identified exit to Extension 17997 | -5/Factory | Spotted B-75 Beast 18095 | -5/Factory | Build established: Gunner 18454 | -5/Factory | Build established: Scavenger-Gunner 18512 | -5/Factory | Repaired Broken Hvy. Treads 19055 | -5/Factory | Entered Extension 19324 | -5/Extension | Rescued A7 19489 | -5/Extension | Rescued a captive Derelict 19490 | -5/Extension | Rescued a captive Derelict 19733 | -5/Extension | Rescued a captive Derelict 19734 | -5/Extension | Rescued a captive Derelict 19740 | -5/Extension | Rescued a captive Derelict 19966 | -5/Extension | Build established: Commander-Tank 20013 | -5/Extension | Spotted B-75 Beast 20023 | -5/Extension | Destroyed B-75 Beast 20030 | -5/Extension | Spotted B-75 Beast 20040 | -5/Extension | Allies destroyed B-75 Beast 20431 | -5/Extension | Rescued a captive Derelict 20450 | -5/Extension | Rescued a captive Derelict 20451 | -5/Extension | Rescued a captive Derelict 20908 | -5/Extension | Rescued a captive Derelict 20909 | -5/Extension | Rescued a captive Derelict 20960 | -5/Extension | Discovered new exit (range 10) 20962 | -5/Extension | Discovered new exit (range 6) 21035 | -5/Extension | Entered Cetus 21035 | -5/Cetus | Accompanied by 20 allies (A7) 21040 | -5/Cetus | Acquired a Cetus Manufacturing Module code from A7 21062 | -5/Cetus | Spotted Cetus Guard 21062 | -5/Cetus | Spotted Cetus Guard 21064 | -5/Cetus | Spotted Cetus Guard 21064 | -5/Cetus | Spotted Cetus Guard 21078 | -5/Cetus | Allies destroyed Cetus Guard 21079 | -5/Cetus | Allies destroyed Cetus Guard 21080 | -5/Cetus | Allies destroyed Cetus Guard 21267 | -5/Cetus | Discovered new exit (range 15) 21374 | -5/Cetus | Build established: Scavenger-Tank 21492 | -5/Cetus | Started Cetus Manufacturing Module 21517 | -5/Cetus | Manufactured an Enhanced Grunt 21534 | -5/Cetus | Discovered new exit (range 15) 21542 | -5/Cetus | Manufactured an Enhanced Grunt 21547 | -5/Cetus | Cetus Manufacturing Module disabled 21572 | -5/Cetus | Spotted Cetus Guard 21572 | -5/Cetus | Spotted Cetus Guard 21579 | -5/Cetus | Spotted Cetus Guard 21583 | -5/Cetus | Spotted Cetus Guard 21593 | -5/Cetus | Destroyed Cetus Guard 21596 | -5/Cetus | Destroyed Cetus Guard 21603 | -5/Cetus | Destroyed Cetus Guard 21607 | -5/Cetus | Allies destroyed Cetus Guard 21631 | -5/Cetus | Discovered new exit (range 16) 21643 | -5/Cetus | Met Revision 17 21771 | -5/Cetus | Extracted ID and sensor layout for unrecognized location from A7's data core 21877 | -5/Cetus | Build established: Scavenger-Gunner 21932 | -5/Cetus | Identified exit to Archives 22000 | -5/Cetus | Identified exit to Factory 22170 | -5/Cetus | Entered Archives 22196 | -5/Archives | Build established: Scavenger-Tank 22353 | -5/Archives | Unable to access archive contents 22371 | -5/Archives | Unable to access archive contents 22383 | -5/Archives | Discovered new exit (range 15) 22396 | -5/Archives | Discovered new exit (range 16) 22420 | -5/Archives | Unable to access archive contents 22436 | -5/Archives | Unable to access archive contents 22444 | -5/Archives | Discovered exit to Factory (range 13) 22519 | -5/Archives | Identified exit to Hub_04(d) 22582 | -5/Archives | Entered Hub_04(d) 23027 | -5/Hub_04(d) | Build established: Scavenger-Gunner 23711 | -5/Hub_04(d) | Discovered exit to Factory (range 16) 23956 | -5/Hub_04(d) | Spotted B-75 Beast 23979 | -5/Hub_04(d) | Destroyed B-75 Beast 24006 | -5/Hub_04(d) | Lost 4 parts (1p1u2w) 24207 | -5/Hub_04(d) | Found Prototype Processor 24220 | -5/Hub_04(d) | Discovered exit to Factory (range 7) 24474 | -5/Hub_04(d) | Build established: Scavenger-Tank 24604 | -5/Hub_04(d) | System corruption reached 10% 24778 | -5/Hub_04(d) | Network Hub disabled 24778 | -5/Hub_04(d) | Network Hub disabled 24785 | -5/Hub_04(d) | Spotted Lightning 24806 | -5/Hub_04(d) | Spotted Lightning 24806 | -5/Hub_04(d) | Spotted Lightning 24806 | -5/Hub_04(d) | Entered Factory 24806 | -4/Factory | Evolved 2 slots: Utility x2 25078 | -4/Factory | Discovered new exit (range 4) 25109 | -4/Factory | Fabricated Hvy. Treads? 25256 | -4/Factory | Build established: Gunner 26608 | -4/Factory | Build established: Mutant 27030 | -4/Factory | Identified Exp. Core Analyzer 27034 | -4/Factory | Lost 3 parts (1p1u1w) 27513 | -4/Factory | Build established: Scavenger-Gunner 28779 | -4/Factory | Repaired Broken Centrium Heavy Treads? 28796 | -4/Factory | System corruption reached 10% 29056 | -4/Factory | First assault squad dispatched 29259 | -4/Factory | Discovered new exit (range 5) 29313 | -4/Factory | Entered Research 29313 | -3/Research | Evolved 2 slots: Propulsion x2 29356 | -3/Research | Identified exit to DSF 29358 | -3/Research | Entered DSF 29384 | -3/DSF | Additional patrols routed to DSF 29481 | -3/DSF | Lost 4 parts (2p1n1u) 29669 | -3/DSF | Sterilization system engaged 29689 | -3/DSF | Ambient heat levels rising (+10) 29704 | -3/DSF | Ambient heat levels rising (+10) 29711 | -3/DSF | System corruption reached 10% 29715 | -3/DSF | Core integrity fell below 50% 29719 | -3/DSF | Ambient heat levels rising (+10) 29734 | -3/DSF | Ambient heat levels rising (+10) 29748 | -3/DSF | Lost 16 parts (2p3n7u4w) 29749 | -3/DSF | Ambient heat levels rising (+10) 29763 | -3/DSF | Discovered new exit (range 14) 29764 | -3/DSF | Ambient heat levels rising (+10) 29779 | -3/DSF | Ambient heat levels rising (+10) 29784 | -3/DSF | Entered Research 29784 | -2/Research | Evolved 2 slots: Utility x2 30158 | -2/Research | System corruption reached 10% 30187 | -2/Research | Lost 6 parts (1p4u1w) 30297 | -2/Research | Core integrity fell below 50% 30311 | -2/Research | Core integrity fell below 20% 30315 | -2/Research | Destroyed by B-90 Cyclops with Nova Cannon Last Messages --------------- 30311_ Critical hit (Blast). 30311_ Knocked back. 30312_ U-05 Engineer lays Concrete. 30312_ Penetrated by Slug. 30312_ K-01 Serf destroyed. 30313_ Extracted 12 matter. 30313_ U-05 Engineer lays Concrete. 30313_ Slug penetrates Wall. 30313_ Penetrated by Slug. 30313_ H-88 Terminator destroyed. 30313_ Penetrated by Slug. 30313_ R-10 Processor collects Com. Wheel. 30314_ The unstable cave ceiling collapses. 30314_ U-05 Engineer builds a Door. 30315_ Penetrated by Slug. 30315_ Huge Storage Unit destroyed. 30315_ Slug penetrates Terminal. 30315_ Knocked back. 30315_ U-05 Engineer lays Concrete. [Achievement: 30k Club] Map ----- +----------------------------------------------------+ | """ """ + #!????????????????????????????????? | | """ """ # # ???????????????????????????????? | | # # ""?????????????????????????????? | | # # """"??"????????????????????????? | | """ """ # # """"""" #????????????????????? | | """ """ # # ?????????????????????? | | """ """ # #? ???????????????????????? | | # # "" ???????????????????????? | | # + ""T"?????????????????????????? | | ########### # """"????????????????????????? | | ??????????# #? ??????????????????????? | | ??????????# #?? #????????????????????? | | ??????????# #####"#########???????????????????? | | ??????????# #???????????????????? | | ??????????# #???????????????????? | | ??????????# %% #???????????????????? | | ??????????# ! % #???????????????????? | | ??????????###############R #???????????????????? | | ???????????# %! !*# =% #???????????????????? | | ???????????# =% = % #####+#######???????? | | ???????????# """ !%%%%% % ^ #?????? | | ???????????# """ h;%%| ^ #?????? | | ???????????# """ = =u % #?????? | | ???????????# % "" #?????? | | ???????????# w %|""" == #?????? | | ???????????# """ = @! == #?????? | | ???????????# """ %R! " ??????? | | ???????????# """ h ??????? | | ???????????#? = % % BB ??????? | | ???????????# h H u BB???????? | | ???????????##### uu uA ???????? | | ???????????????## # # ########### ????????? | | ????????????????## ### ##h #??????????? ????????? | | ?????????????????###??# ?# #????????????????????? | | ??????????????????????# ?# #????????????????????? | | ??????????????????????##?? #????????????????????? | | ?????????????????????????? #????????????????????? | | ?????????????????????????? #????????????????????? | | ?????????????????????????? u/????????????????????? | | ?????????????????????????? #????????????????????? | | ?????????????????????????? ?????????????????????? | | ?????????????????????????? =?????????????????????? | | ?????????????????????????????????????????????????? | | ?????????????????????????????????????????????????? | | ?????????????????????????????????????????????????? | | ?????????????????????????????????????????????????? | | ?????????????????????????????????????????????????? | | ?????????????????????????????????????????????????? | | ?????????????????????????????????????????????????? | | ?????????????????????????????????????????????????? | +----------------------------------------------------+ Best States ------------- Heat Dissipation 80 Energy Generation 41 Energy Capacity 750 Matter Stores 300 Matter Capacity 300 Sight Range 16 Terrain Scan Density 10 Jamming Range 12 EM Shielding 2 Armor Coverage 1200 Resistance: KI 30 Core Shielding 30 Propulsion Shielding 66 Utility Shielding 66 Weapon Shielding 66 Weapon Cycling 15 Melee Speed Boost 40 Evasion (%) 40 Targeting Accuracy 8 Melee Accuracy 8 Target Analysis 10 Core Analysis 11 Armor Integrity Analysis 30 Recoil Reduction 6 Matter Filtering 30 Kinecelleration 30 Offensive Hacking 20 Defensive Hacking 12 Trap Extractor Capacity 6 Item Schematics ----------------- Hvy. Treads | -7/Factory | Scanalyzed Robot Schematics ------------------ None Fabricated ------------ Hvy. Treads | x2 | -7/Factory Hvy. Treads | x2 | -4/Factory Alien Tech Used ----------------- None Achievements -------------- 30k Club Prison Break Project G-00 Revising The Future Total Silence Challenges ------------ None Game ------ Seed TractorCouplerInverter Manual? 0 Play Time 03:02:37 Cumulative 50.5 hours Start 2023.12.05 @ 22:05:18 End 2023.12.06 @ 16:51:45 Sessions 7 Manual Loads 0 Difficulty Rogue Special Mode None Game No. 75 Rogue 75 Adventurer 0 Explorer 0 Win Type - Total 1 Types 1/0/0/0/0/0/0/0/0 Lore% 26 Gallery% 39 Achievement% 34 Wizard Run 0 Options --------- ASCII 0 Keyboard 1 Movement Numpad Keybinds 0 Fullscreen 2 Font 18/SmallcapsGlow Map View 76x50 Tactical HUD 1 Map Filters NONE Filters NONE Steam 1 RUN: 2659ba78-3ee1-4a46-bdac-f827211e84d9